lending/lending_fUSD_20241124
["ID","MTS","AMOUNT","RATE_DAILY","PERIOD"]
[343222189,1732480276693,-500.0,0.00048769,30]
[343222190,1732480276703,-721.8450413,0.00048769,30]
[343222191,1732480276714,-500.0,0.00048769,30]
[343222192,1732480276724,-500.0,0.00048769,30]
[343222193,1732480276734,-1359.0,0.00048769,30]
[343222194,1732480276744,-728.88135017,0.00048781,30]
[343222195,1732480276754,-303.91970874,0.00048781,30]
[343222196,1732480276765,-227.25754526,0.00048781,30]
[343222197,1732480276775,-157.22180757,0.00048784,120]
[343222198,1732480276785,-150.0,0.00048791,30]
[343222199,1732480276795,-150.0,0.00048803,30]
[343222200,1732480276804,-150.0,0.00048817,30]
[343222201,1732480276816,-728.88135017,0.00048827,30]
[343222202,1732480276826,-303.91970874,0.00048827,30]
[343222203,1732480276836,-227.25754526,0.00048827,30]
[343222204,1732480276847,-150.0,0.00048858,30]
[343222205,1732480276856,-728.88135017,0.00048874,30]
[343222206,1732480276866,-303.91970874,0.00048874,30]
[343222207,1732480276876,-227.25754526,0.00048874,30]
[343222208,1732480276886,-150.0,0.00048894,30]
[343222209,1732480276896,-185.14986788,0.000489,25]
[343222210,1732480276906,-500.0,0.00048904,120]
[343222211,1732480276917,-728.88135017,0.00048921,30]
[343222212,1732480276926,-303.91970874,0.00048921,30]
[343222213,1732480276938,-227.25754526,0.00048921,30]
[343222214,1732480276948,-150.0,0.00048925,30]
[343222215,1732480276958,-150.0,0.00048936,30]
[343222216,1732480276969,-728.88135017,0.00048968,30]
[343222217,1732480276979,-303.91970874,0.00048968,30]
[343222218,1732480276989,-227.25754526,0.00048968,30]
[343222219,1732480276999,-292.35710836,0.00048971,28]
[343222220,1732480277009,-150.0,0.00048985,30]
[343222221,1732480277019,-1998.0,0.00048989,24]
[343222222,1732480277029,-150.0,0.00048992,30]
[343222223,1732480277040,-29140.21149824,0.00048999,2]
[343222224,1732480277050,-1000.0,0.00049,19]
[343222225,1732480277060,-1000.0,0.00049,19]
[343222226,1732480277070,-186099.93945863,0.00049,2]
[343222227,1732480277080,-150.0,0.00049,7]
[343222228,1732480277090,-1786.0,0.00049,3]
[343222229,1732480277100,-31016.23786353,0.00049,20]
[343222230,1732480277110,-1191.1694993,0.00049,33]
[343222231,1732480277121,-728.88135017,0.00049015,30]
[343222232,1732480277131,-303.91970874,0.00049015,30]
[343222233,1732480277142,-227.25754526,0.00049015,30]
[343222234,1732480277152,-150.0,0.00049015,30]
[343222235,1732480277162,-500.0,0.00049041,120]
[343222236,1732480277171,-1000.0,0.00049041,120]
[343222237,1732480277181,-588.55895916,0.00049043,30]
[343222238,1732480277194,-500.0,0.00049043,30]
[343222239,1732480277204,-500.0,0.00049043,30]
[343222240,1732480277214,-1359.0,0.00049043,30]
[343222241,1732480277224,-637.13715455,0.00049054,15]
[343222242,1732480277233,-150.0,0.00049054,30]
[343222243,1732480277243,-150.0,0.0004906,30]
[343222244,1732480277254,-728.88135017,0.00049062,30]
[343222245,1732480277264,-303.91970874,0.00049062,30]
[343222246,1732480277275,-227.25754526,0.00049062,30]
[343222247,1732480277285,-150.0,0.00049075,30]
[343222248,1732480277296,-728.88135017,0.00049109,30]
[343222249,1732480277306,-303.91970874,0.00049109,30]
[343222250,1732480277318,-227.25754526,0.00049109,30]
[343222251,1732480277328,-150.0,0.00049127,30]
[343222252,1732480277338,-728.88135017,0.00049155,30]
[343222253,1732480277348,-303.91970874,0.00049155,30]
[343222254,1732480277359,-227.25754526,0.00049155,30]
[343222255,1732480277368,-150.0,0.00049166,30]
[343222256,1732480277378,-339.43565466,0.00049171,120]
[343222257,1732480277388,-150.0,0.00049173,30]
[343222258,1732480277398,-500.0,0.00049178,120]
[343222259,1732480277408,-150.0,0.00049194,30]
[343222260,1732480277418,-728.88135017,0.00049202,30]
[343222261,1732480277427,-303.91970874,0.00049202,30]
[343222262,1732480277440,-227.25754526,0.00049202,30]
[343222263,1732480277451,-2618.25835841,0.00049218,3]
[343222264,1732480277461,-150.0,0.00049221,30]
[343222265,1732480277471,-2000.0,0.00049243,120]
[343222266,1732480277482,-728.88135017,0.00049249,30]
[343222267,1732480277493,-303.91970874,0.00049249,30]
[343222268,1732480277502,-227.25754526,0.00049249,30]
[343222269,1732480277511,-150.0,0.00049257,30]
[343222270,1732480277522,-150.0,0.00049261,30]
[343222271,1732480277532,-150.0,0.00049292,30]
[343222272,1732480277544,-728.88135017,0.00049296,30]
[343222273,1732480277555,-303.91970874,0.00049296,30]
[343222274,1732480277566,-227.25754526,0.00049296,30]
[343222275,1732480277582,-24339.70621777,0.00049315,2]
[343222276,1732480277592,-1754.51119196,0.00049315,120]
[343222277,1732480277602,-2000.0,0.00049315,120]
[343222278,1732480277611,-2000.0,0.00049315,120]
[343222279,1732480277619,-2000.0,0.00049315,120]
[343222280,1732480277627,-2000.0,0.00049315,120]
[343222281,1732480277636,-2000.0,0.00049315,120]
[343222282,1732480277645,-2000.0,0.00049315,120]
[343222283,1732480277655,-2000.0,0.00049315,120]
[343222284,1732480277664,-2000.0,0.00049315,120]
[343222285,1732480277674,-2000.0,0.00049315,120]
[343222286,1732480277686,-2000.0,0.00049315,30]
[343222287,1732480277695,-2000.0,0.00049315,30]
[343222288,1732480277705,-2000.0,0.00049315,30]
[343222289,1732480277715,-500.0,0.00049315,2]
[343222290,1732480277725,-507.77662116,0.00049315,2]
[343222291,1732480277736,-500.0,0.00049315,2]
[343222292,1732480277746,-500.0,0.00049315,2]
[343222293,1732480277756,-500.0,0.00049315,2]
[343222294,1732480277766,-500.0,0.00049315,2]
[343222295,1732480277776,-500.0,0.00049315,2]
[343222296,1732480277786,-500.0,0.00049315,2]
[343222297,1732480277797,-337.27049215,0.00049315,2]
[343222298,1732480277806,-596.54,0.00049315,120]
[343222299,1732480277817,-2244.0,0.00049315,20]
[343222300,1732480277828,-500.0,0.00049317,30]
[343222301,1732480277838,-849.132426,0.00049317,30]
[343222302,1732480277848,-1359.0,0.00049317,30]
[343222303,1732480277858,-150.0,0.00049325,120]
[343222304,1732480277868,-150.0,0.00049328,30]
[343222305,1732480277878,-728.88135017,0.00049343,30]
[343222306,1732480277888,-303.91970874,0.00049343,30]
[343222307,1732480277898,-227.25754526,0.00049343,30]
[343222308,1732480277909,-150.0,0.00049348,30]
[343222309,1732480277919,-176.05,0.00049383,2]
[343222310,1732480277929,-728.88135017,0.0004939,30]
[343222311,1732480277944,-303.91970874,0.0004939,30]
[343222312,1732480277954,-227.25754526,0.0004939,30]
[343222313,1732480277964,-150.0,0.00049396,30]
[343222314,1732480277975,-100000.0,0.000494,120]
[343222315,1732480277985,-292.35710836,0.000494,28]
[343222316,1732480277995,-150.0,0.00049411,30]
[343222317,1732480278005,-157.22180757,0.00049429,120]
[343222318,1732480278015,-728.88135017,0.00049436,30]
[343222319,1732480278025,-303.91970874,0.00049436,30]
[343222320,1732480278035,-227.25754526,0.00049436,30]
[343222321,1732480278046,-150.0,0.00049439,30]
[343222322,1732480278056,-1000.0,0.00049452,120]
[343222323,1732480278066,-150.0,0.00049463,30]
[343222324,1732480278076,-728.88135017,0.00049483,30]
[343222325,1732480278086,-303.91970874,0.00049483,30]
[343222326,1732480278096,-227.25754526,0.00049483,30]
[343222327,1732480278106,-5845.53783144,0.000495,120]
[343222328,1732480278116,-10000.0,0.000495,120]
[343222329,1732480278125,-203.0,0.000495,90]
[343222330,1732480278135,-467.69281263,0.000495,120]
[343222331,1732480278146,-302129.84305609,0.000495,60]
[343222332,1732480278156,-5674.88,0.000495,120]
[343222333,1732480278166,-160.26079513,0.000495,2]
[343222334,1732480278176,-637.13715455,0.00049502,15]
[343222335,1732480278190,-152.06137303,0.00049506,9]
[343222336,1732480278202,-150.0,0.0004953,30]
[343222337,1732480278212,-728.88135017,0.0004953,30]
[343222338,1732480278222,-303.91970874,0.0004953,30]
[343222339,1732480278232,-227.25754526,0.0004953,30]
[343222340,1732480278242,-150.0,0.0004953,30]
[343222341,1732480278252,-150.0,0.0004953,30]
[343222342,1732480278262,-150.0,0.0004953,30]
[343222343,1732480278273,-150.0,0.0004953,30]
[343222344,1732480278284,-500.0,0.00049554,120]
[343222345,1732480278294,-728.88135017,0.00049577,30]
[343222346,1732480278304,-303.91970874,0.00049577,30]
[343222347,1732480278316,-227.25754526,0.00049577,30]
[343222348,1732480278326,-2000.0,0.00049589,120]
[343222349,1732480278337,-339.43565466,0.0004959,120]
[343222350,1732480278348,-624.85790804,0.00049591,30]
[343222351,1732480278358,-1359.0,0.00049591,30]
[343222352,1732480278495,-150.0,0.00049597,30]
[343222353,1732480278505,-120500.80946801,0.000496,120]
[343222354,1732480278517,-150.0,0.00049621,30]
[343222355,1732480278527,-728.88135017,0.00049624,30]
[343222356,1732480278537,-303.91970874,0.00049624,30]
[343222357,1732480278547,-227.25754526,0.00049624,30]
[343222358,1732480278557,-150.0,0.00049639,120]
[343222359,1732480278567,-151.47,0.00049645,120]
[343222360,1732480278576,-150.0,0.00049649,30]
[343222361,1732480278586,-150.0,0.00049656,120]
[343222362,1732480278595,-150.0,0.00049665,30]
[343222363,1732480278607,-728.88135017,0.00049671,30]
[343222364,1732480278616,-303.91970874,0.00049671,30]
[343222365,1732480278626,-227.25754526,0.00049671,30]
[343222366,1732480278635,-601.0,0.000497,120]
[343222367,1732480278645,-2720.0,0.000497,40]
[343222368,1732480278655,-150.0,0.00049712,30]
[343222369,1732480278665,-728.88135017,0.00049717,30]
[343222370,1732480278675,-303.91970874,0.00049717,30]
[343222371,1732480278688,-227.25754526,0.00049717,30]
[343222372,1732480278698,-150.0,0.00049725,120]
[343222373,1732480278708,-150.0,0.00049732,30]
[343222374,1732480278718,-728.88135017,0.00049764,30]
[343222375,1732480278728,-303.91970874,0.00049764,30]
[343222376,1732480278739,-227.25754526,0.00049764,30]
[343222377,1732480278749,-150.0,0.00049768,30]
[343222378,1732480278759,-12000.0,0.00049772,8]
[343222379,1732480278769,-6065.55035872,0.0004979,120]
[343222380,1732480278779,-500.0,0.0004979,18]
[343222381,1732480278789,-500.0,0.0004979,18]
[343222382,1732480278798,-500.0,0.0004979,18]
[343222383,1732480278807,-500.0,0.0004979,18]
[343222384,1732480278817,-500.0,0.0004979,18]
[343222385,1732480278828,-500.0,0.0004979,18]
[343222386,1732480278837,-500.0,0.0004979,18]
[343222387,1732480278847,-500.0,0.0004979,18]
[343222388,1732480278859,-500.0,0.0004979,18]
[343222389,1732480278868,-500.0,0.0004979,18]
[343222390,1732480278877,-500.0,0.0004979,38]
[343222391,1732480278886,-500.0,0.0004979,18]
[343222392,1732480278896,-500.0,0.0004979,18]
[343222393,1732480278906,-500.0,0.0004979,18]
[343222394,1732480278915,-500.0,0.0004979,18]
[343222395,1732480278924,-500.0,0.0004979,18]
[343222396,1732480278936,-500.0,0.0004979,18]
[343222397,1732480278946,-500.0,0.0004979,18]
[343222398,1732480278956,-500.0,0.0004979,18]
[343222399,1732480278966,-500.0,0.0004979,18]
[343222400,1732480278976,-500.0,0.0004979,18]
[343222401,1732480278986,-500.0,0.0004979,38]
[343222402,1732480278996,-150.0,0.00049799,30]
[343222403,1732480279005,-1060.38410223,0.000498,30]
[343222404,1732480279015,-7231.62842097,0.000498,120]
[343222405,1732480279025,-487.0,0.000498,3]
[343222406,1732480279035,-38463.55357687,0.000498,120]
[343222407,1732480279045,-19830.60621002,0.000498,120]
[343222408,1732480279054,-727.66971764,0.000498,120]
[343222409,1732480279064,-150.0,0.00049803,30]
[343222410,1732480279073,-728.88135017,0.00049811,30]
[343222411,1732480279083,-303.91970874,0.00049811,30]
[343222412,1732480279093,-227.25754526,0.00049811,30]
[343222413,1732480279102,-50000.0,0.00049813,120]
[343222414,1732480279112,-200.0,0.00049835,120]
[343222415,1732480279122,-5428.10623889,0.00049849,30]
[343222416,1732480279132,-10000.0,0.0004985,21]
[343222417,1732480279143,-1298203.4126,0.00049853,120]
[343222418,1732480279153,-728.88135017,0.00049858,30]
[343222419,1732480279163,-303.91970874,0.00049858,30]
[343222420,1732480279173,-227.25754526,0.00049858,30]
[343222421,1732480279183,-1000.0,0.00049859,120]
[343222422,1732480279198,-2000.0,0.0004986,30]
[343222423,1732480279208,-2000.0,0.00049863,120]
[343222424,1732480279218,-1000.0,0.00049863,120]
[343222425,1732480279228,-1359.0,0.00049865,30]
[343222426,1732480279237,-150.0,0.00049866,30]
[343222427,1732480279246,-205.0,0.0004987,30]
[343222428,1732480279256,-205.0,0.0004987,30]
[343222429,1732480279265,-206.0,0.0004987,30]
[343222430,1732480279275,-201.0,0.0004987,30]
[343222431,1732480279284,-203.0,0.0004987,30]
[343222432,1732480279293,-225.0,0.0004987,30]
[343222433,1732480279303,-4000.0,0.00049876,60]
[343222434,1732480279312,-800.0,0.00049883,30]
[343222435,1732480279321,-150.0,0.00049887,30]
[343222436,1732480279330,-150.0,0.00049894,30]
[343222437,1732480279340,-150.0,0.00049898,2]
[343222438,1732480279349,-259830.97222302,0.000499,4]
[343222439,1732480279360,-154156.33900963,0.000499,3]
[343222440,1732480279370,-37465.37953503,0.000499,3]
[343222441,1732480279379,-155170.15612161,0.000499,3]
[343222442,1732480279389,-62883.87571115,0.000499,120]
[343222443,1732480279610,-1486.25,0.00046575,2]
[343222444,1732480279620,-3319.96268421,0.000499,120]
[343222452,1732481060548,108479.21042567,0.0004,120]
[343222456,1732481431605,-231.79,0.00045676,2]
[343222457,1732481431615,-500.0,0.0004587,120]
[343222458,1732481431625,-871.26945928,0.00045911,2]
[343222459,1732481431634,-187.9460094,0.00045942,2]
[343222460,1732481431716,-683.32344988,0.00045942,2]
[343222461,1732481431725,-871.26945928,0.00045972,2]
[343222462,1732481431735,-871.26945928,0.00045975,2]
[343222463,1732481431745,-871.26945928,0.00045992,2]
[343222464,1732481431754,-871.26945928,0.00045994,2]
[343222465,1732481431764,-1875.9639,0.00046389,2]
[343222466,1732481431775,-500.0,0.00046418,120]
[343222467,1732481431787,-4431.6907,0.00046475,2]
[343222468,1732481431796,-500.0,0.00046575,2]
[343222469,1732481431805,-158.454,0.00046575,77]
[343222470,1732481431815,-1142.3,0.00046575,2]
[343222471,1732481431827,-1142.3,0.00046575,2]
[343222472,1732481431839,-1142.3,0.00046575,2]
[343222473,1732481431848,-1142.3,0.00046575,2]
[343222474,1732481431859,-1142.3,0.00046575,2]
[343222475,1732481431868,-1142.3,0.00046575,2]
[343222476,1732481431878,-1142.3,0.00046575,2]
[343222477,1732481431888,-1142.3,0.00046575,2]
[343222478,1732481431898,-1142.3,0.00046575,2]
[343222479,1732481431907,-1142.3,0.00046575,2]
[343222480,1732481432101,-1142.3,0.00046575,2]
[343222481,1732481432111,-1142.3,0.00046575,2]
[343222482,1732481432121,-1142.3,0.00046575,2]
[343222483,1732481432131,-1142.3,0.00046575,2]
[343222484,1732481432141,-1142.3,0.00046575,2]
[343222485,1732481432151,-1142.3,0.00046575,2]
[343222486,1732481432161,-1142.3,0.00046575,2]
[343222487,1732481432170,-1142.3,0.00046575,2]
[343222488,1732481432180,-1142.3,0.00046575,2]
[343222489,1732481432190,-207.25093819,0.00046575,2]
[343222490,1732481432211,-309.63859998,0.00046575,2]
[343222491,1732481432222,-625.41046183,0.00046575,2]
[343222492,1732481432231,-1142.3,0.00046575,2]
[343222493,1732481432240,-1142.3,0.00046575,2]
[343222494,1732481432249,-1142.3,0.00046575,2]
[343222495,1732481432259,-1142.47823989,0.00046575,2]
[343222496,1732481432267,-500.0,0.00046575,2]
[343222497,1732481432276,-500.0,0.00046575,2]
[343222498,1732481432285,-500.0,0.00046575,2]
[343222499,1732481432294,-1445.58,0.00046575,2]
[343222500,1732481432303,-1445.58,0.00046575,2]
[343222501,1732481432312,-1416.40715142,0.00046575,2]
[343222503,1732481432323,-29.17284858,0.00046575,2]
[343222506,1732481432334,-1445.58,0.00046575,2]
[343222508,1732481432343,-1445.58,0.00046575,2]
[343222510,1732481432352,-595.84544861,0.00046575,2]
[343222690,1732481437736,-849.73455139,0.00046575,2]
[343222691,1732481437746,-1445.58,0.00046575,2]
[343222692,1732481437755,-1015.78544132,0.00046575,2]
[343222693,1732481437850,-429.79455868,0.00046575,2]
[343222694,1732481437860,-1396.77140599,0.00046575,2]
[343222695,1732481437872,-48.80859401,0.00046575,2]
[343222696,1732481437881,-826.06077422,0.00046575,2]
[343222697,1732481437892,-619.51922578,0.00046575,2]
[343222698,1732481437901,-1445.58,0.00046575,2]
[343222699,1732481437910,-1445.58,0.00046575,2]
[343222700,1732481437919,-485.36831355,0.00046575,2]
[343222701,1732481438126,-633.50281306,0.00046575,2]
[343222705,1732481439627,-326.70887339,0.00046575,2]
[343222706,1732481439638,-164.21108114,0.00046575,2]
[343222707,1732481439649,-632.4690384,0.00046575,2]
[343222708,1732481439793,-648.89988046,0.00046575,2]
[343222709,1732481439802,-221.96063754,0.00046575,2]
[343222710,1732481439813,-277.855,0.00046575,2]
[343222712,1732481442804,-337.47543082,0.00046575,2]
[343222713,1732481443019,-608.28893164,0.00046575,2]
[343222714,1732481443029,-1445.58,0.00046575,2]
[343222715,1732481443039,-1445.58,0.00046575,2]
[343222716,1732481443048,-509.95720116,0.00046575,2]
[343222717,1732481443060,-935.62279884,0.00046575,2]
[343222718,1732481443069,-786.81601524,0.00046575,2]
[343222720,1732481443242,-658.76398476,0.00046575,2]
[343222721,1732481443251,-198.75621304,0.00046575,2]
[343222722,1732481443262,-1246.82378696,0.00046575,2]
[343222723,1732481443272,-1445.58,0.00046575,2]
[343222724,1732481443282,-1445.58,0.00046575,2]
[343222725,1732481443291,-1445.58,0.00046575,2]
[343222726,1732481443301,-1445.76008003,0.00046575,2]
[343222727,1732481443310,-500.0,0.00046864,2]
[343222728,1732481443319,-500.0,0.00046966,120]
[343222729,1732481443329,-1139.17613313,0.00046995,120]
[343222730,1732481443342,-405.6553447,0.00046995,120]
[343222731,1732481443353,-1063.643601,0.00046995,120]
[343222766,1732481445734,-274.0209855,0.00046995,120]
[343222767,1732481445953,-2117.50393567,0.00046995,120]
[343222768,1732481445963,-2046.08,0.00047085,10]
[343222769,1732481445973,-565.0,0.00047095,2]
[343222770,1732481445982,-150.38,0.00047095,2]
[343222771,1732481445991,-1269.841,0.00047095,2]
[343222772,1732481446000,-1996.0,0.00047095,2]
[343222773,1732481446009,-211.3,0.00047095,2]
[343222774,1732481446019,-150.857,0.00047095,2]
[343222775,1732481446028,-634.995,0.00047095,2]
[343222776,1732481446038,-1929.0,0.00047095,2]
[343222777,1732481446047,-567.559,0.00047095,2]
[343222778,1732481446056,-3751.0,0.00047095,2]
[343222779,1732481446067,-1262.0,0.00047095,2]
[343222781,1732481446076,-980.0,0.00047095,2]
[343222782,1732481446086,-3518.0,0.00047095,2]
[343222783,1732481446099,-13671.0,0.00047095,2]
[343222784,1732481446112,-5946.0,0.00047095,2]
[343222785,1732481446122,-1163.0,0.00047095,2]
[343222786,1732481446132,-151.811,0.00047095,2]
[343222787,1732481446141,-150.0,0.00047095,2]
[343222788,1732481446151,-1094.0,0.00047095,2]
[343222789,1732481446162,-151.057,0.00047095,2]
[343222790,1732481446172,-500.0,0.00047499,2]
[343222791,1732481446181,-500.0,0.00047499,2]
[343222792,1732481446191,-500.0,0.00047499,2]
[343222793,1732481446201,-500.0,0.00047499,2]
[343222794,1732481446210,-500.0,0.00047499,2]
[343222795,1732481446220,-1125.67,0.00047499,2]
[343222796,1732481446229,-500.0,0.00047499,2]
[343222797,1732481446239,-474.41928209,0.00047499,2]
[343222798,1732481446248,-538.75430231,0.00047499,2]
[343222799,1732481446257,-500.0,0.00047499,2]
[343222800,1732481446266,-568.1,0.00047499,2]
[343222801,1732481446276,-500.0,0.00047499,2]
[343222802,1732481446285,-500.0,0.00047514,120]
[343222803,1732481446294,-3478.32,0.00047525,10]
[343222804,1732481446303,-392.46459382,0.00047535,2]
[343222805,1732481446313,-1663.41,0.00047535,2]
[343222806,1732481446322,-500.0,0.00047535,2]
[343222807,1732481446332,-743.12,0.00047535,2]
[343222808,1732481446342,-9249.80143127,0.00047535,2]
[343222809,1732481446354,-1684.07873575,0.00047535,2]
[343222810,1732481446365,-332.11320404,0.00047535,2]
[343222811,1732481446377,-466.43272456,0.00047535,2]
[343222812,1732481520950,1000.0,0.000373,15]
[343222813,1732481521453,1000.0,0.000376,15]
[343222814,1732481521708,1000.0,0.000379,15]
[343222815,1732481522432,200.19675,0.00038679,2]
[343222816,1732481530036,150.02681067,0.00038,120]
[343222817,1732481538421,150.02681067,0.0004,120]
[343222819,1732481632472,156.02,0.00041096,2]
[343222825,1732481938814,165.83,0.00038031,2]
[343222827,1732482191371,255.81828849,0.00038,120]
[343222828,1732482199677,255.81828849,0.0004,120]
[343222829,1732482271189,-40717.27592967,0.00051104,10]
[343222830,1732482271213,-10000.0,0.00051104,29]
[343222831,1732482271234,-726.84,0.00051104,10]
[343222832,1732482271260,-96468.03177811,0.00051104,10]
[343222833,1732482271282,-1381.17686467,0.00051104,10]
[343222834,1732482271303,-10184.996066,0.00051104,10]
[343222835,1732482271327,-4757.66588872,0.00051104,10]
[343222836,1732482271348,-48996.06507819,0.00051104,16]
[343222837,1732482271371,-49156.44489693,0.00051104,10]
[343222838,1732482271398,-24771.10205258,0.00051104,10]
[343222839,1732482271420,-12840.40144513,0.00051104,14]
[343222871,1732482637989,-528.0,0.00043,2]
[343222872,1732482637998,-325.34646529,0.00043,120]
[343222873,1732482638047,-186.29011169,0.00043,120]
[343222874,1732482638057,-150.0,0.00044778,30]
[343222875,1732482638066,-220.2,0.00045406,2]
[343222876,1732482638077,-440.12337094,0.0004588,2]
[343222877,1732482638159,-254.8619072,0.0004588,2]
[343222881,1732482639862,-262.45144029,0.0004588,2]
[343222882,1732482639874,-1088.85872553,0.00045891,2]
[343222883,1732482639884,-1088.85872553,0.00045892,2]
[343222884,1732482639894,-937.53119435,0.00045893,2]
[343222885,1732482639904,-1088.85872553,0.00045896,2]
[343222886,1732482639915,-937.53119435,0.00045908,2]
[343222887,1732482639925,-937.53119435,0.00045914,2]
[343222888,1732482639934,-957.43671843,0.00045916,2]
[343222889,1732482639943,-937.53119435,0.00045917,2]
[343222890,1732482639952,-937.53119435,0.00045918,2]
[343222891,1732482639962,-957.43671843,0.00045919,2]
[343222892,1732482639971,-957.43671843,0.00045934,2]
[343222893,1732482639981,-937.53119435,0.00045938,2]
[343222894,1732482639990,-957.43671843,0.00045942,2]
[343222895,1732482640000,-1088.85872553,0.00045956,2]
[343222896,1732482640010,-1088.85872553,0.0004597,2]
[343222897,1732482640020,-957.43671843,0.00045973,2]
[343222898,1732482640030,-1088.85872553,0.00045997,2]
[343222899,1732482640039,-639.54572123,0.00046,120]
[343222900,1732482640048,-431.14,0.00046375,2]
[343222901,1732482640057,-200.0,0.00046474,60]
[343222902,1732482640066,-550.0,0.00046474,5]
[343222903,1732482640077,-10260.4306,0.00046475,2]
[343222904,1732482640086,-609.62,0.00046736,30]
[343222905,1732482640096,-156.02,0.00046736,2]
[343222906,1732482640106,-14963.0,0.00046866,30]
[343222907,1732482640115,-158.45473017,0.00047094,79]
[343222908,1732482640124,-450.0,0.00047094,4]
[343222909,1732482640134,-150.33,0.00047095,2]
[343222910,1732482640146,-150.0,0.00047095,2]
[343222912,1732482640155,-248.7,0.00047095,2]
[343222914,1732482640165,-150.187,0.00047095,2]
[343222916,1732482640174,-1258.0,0.00047095,2]
[343222918,1732482640183,-565.0,0.00047095,2]
[343222919,1732482640193,-629.0,0.00047095,2]
[343222920,1732482640202,-1996.0,0.00047095,2]
[343222921,1732482640212,-150.0,0.00047095,2]
[343222922,1732482640222,-561.0,0.00047095,2]
[343222923,1732482640231,-1929.0,0.00047095,2]
[343222924,1732482640241,-3751.0,0.00047095,2]
[343222925,1732482640250,-1262.0,0.00047095,2]
[343222926,1732482640260,-3518.0,0.00047095,2]
[343222927,1732482640269,-980.0,0.00047095,2]
[343222928,1732482640279,-150.0,0.00047095,2]
[343222929,1732482640288,-13671.0,0.00047095,2]
[343222930,1732482640298,-5946.0,0.00047095,2]
[343222931,1732482640306,-1163.0,0.00047095,2]
[343222932,1732482640317,-1094.0,0.00047095,2]
[343222933,1732482640327,-250.0,0.00047325,120]
[343222934,1732482640336,-160.71386139,0.00047367,10]
[343222935,1732482640345,-1000.0,0.00047421,2]
[343222936,1732482640355,-151.47,0.00047433,120]
[343222937,1732482640364,-1228.52,0.00047448,7]
[343222938,1732482640373,-151.66655502,0.00047535,38]
[343222939,1732482640383,-2000.0,0.00047596,120]
[343222940,1732482640392,-159.13,0.0004762,120]
[343222941,1732482640401,-220.2,0.0004767,2]
[343222942,1732482640411,-167.76,0.00047676,2]
[343222943,1732482640420,-277.93,0.00047769,120]
[343222944,1732482640430,-279.096992,0.00047803,60]
[343222945,1732482640439,-152.37,0.00047831,30]
[343222946,1732482640451,-663.14,0.00047831,30]
[343222947,1732482640461,-217.02,0.00047831,30]
[343222948,1732482640471,-433.47,0.00047831,30]
[343222949,1732482640482,-150.0,0.00047831,30]
[343222950,1732482640492,-308.49,0.00047831,30]
[343222951,1732482640501,-150.0,0.00047831,30]
[343222952,1732482640510,-150.0,0.00047831,30]
[343222953,1732482640520,-150.0,0.00047831,30]
[343222954,1732482640529,-150.0,0.00047831,30]
[343222955,1732482640538,-150.0,0.00047831,30]
[343222956,1732482640547,-1280.0,0.0004784,120]
[343222957,1732482640556,-659.49,0.000479,2]
[343222958,1732482640566,-5000.0,0.0004796,12]
[343222959,1732482640575,-639.54572122,0.00048,120]
[343222960,1732482640585,-500.0,0.00048528,120]
[343222961,1732482640594,-2000.0,0.00048528,120]
[343222962,1732482640604,-500.0,0.00048528,120]
[343222963,1732482640613,-200.0,0.00048528,120]
[343222964,1732482640623,-5000.0,0.0004859,120]
[343222965,1732482640633,-1542.61,0.0004874,10]
[343222966,1732482640643,-2641.5,0.0004875,10]
[343222967,1732482640652,-5000.0,0.0004875,30]